[Event "FIDE World Rapid-ch Open 2018"]
[White "Ragger, Markus"]
[Black "Jobava, Baadur"]
[Site "St. Petersburg"]
[Round "15.19"]
[Annotator "ChessBase"]
[Result "0-1"]
[Date "2018.12.28"]
[WhiteElo "2687"]
[BlackElo "2627"]
[PlyCount "68"]
[TimeControl "900+10"]

1. e4 {[%emt 0:0:0]} c5 {[%emt 0:0:0]} 2. Nf3 {[%emt 0:0:0]} e6 {[%emt 0:0:0]} 3. d4 {[%emt 0:0:0]} cxd4 {[%emt 0:0:0]} 4. Nxd4 {[%emt 0:0:0]} Nf6 {[%emt 0:0:0]} 5. Nc3 {[%emt 0:0:4]} Bb4 {[%emt 0:0:0]} 6. e5 {[%emt 0:0:29]
} Nd5 {[%emt 0:0:2]} 7. Bd2 {[%emt 0:0:54]} Bxc3 {[%emt 0:0:0]} 8. bxc3 {[%emt 0:0:3]} 0-0 {[%emt 0:0:3]} 9. Bd3 {[%emt 0:1:10]} d6 {[%emt 0:0:3]
} 10. exd6 {[%emt 0:0:46]} Qxd6 {[%emt 0:0:3]} 11. 0-0 {[%emt 0:0:8]
} Bd7 {[%emt 0:0:3]} 12. Rb1 {[%emt 0:0:48]} Na6 {[%emt 0:0:0]} 13. Bxa6 {[%emt 0:5:36]} Qxa6 {[%emt 0:0:31]} 14. Qf3 {[%emt 0:0:26]} Rac8 {[%emt 0:0:22]} 15. Rfc1 {[%emt 0:0:13]} b6 {[%emt 0:0:29]} 16. Qd3 {[%emt 0:0:15]
} Qc4 {[%emt 0:0:9]} 17. Rb3 {[%emt 0:0:18]} e5 {[%emt 0:0:0]} 18. Ne2 {[%emt 0:1:1]} Ba4 {[%emt 0:0:3]} 19. Rbb1 {[%emt 0:0:32]} Rfd8 {[%emt 0:0:6]} 20. Qxc4 {[%emt 0:0:1]} Rxc4 {[%emt 0:0:3]} 21. Be1 {[%emt 0:0:2]
} f6 {[%emt 0:0:8]} 22. Rb2 {[%emt 0:0:15]} Kf7 {[%emt 0:0:0]} 23. Rd1 {[%emt 0:0:9]} Ke6 {[%emt 0:1:9]} 24. f3 {[%emt 0:0:8]} Rd7 {[%emt 0:0:16]} 25. Kf2 {[%emt 0:0:4]} g5 {[%emt 0:0:6]} 26. Rd2 {[%emt 0:0:0]} h5 {[%emt 0:0:4]} 27. Rb1 {[%emt 0:0:9]} h4 {[%emt 0:0:15]} 28. Rbd1 {[%emt 0:0:20]} Bc6 {[%emt 0:0:2]} 29. Rd3 {[%emt 0:0:22]} Ra4 {[%emt 0:0:8]
} 30. Nc1 {[%emt 0:0:14]} g4 {[%emt 0:0:27]} 31. fxg4 {[%emt 0:0:0]} Rxg4 {[%emt 0:0:13]} 32. g3 {[%emt 0:0:2]} hxg3+ {[%emt 0:0:11]} 33. Rxg3 {[%emt 0:0:32]} Rf4+ {[%emt 0:0:3]} 34. Kg1 {[%emt 0:0:8]} Ne3 {[%emt 0:0:2]
} 0-1

[Event "FIDE World Rapid-ch Open 2018"]
[White "Alekseenko, Kirill"]
[Black "Riazantsev, Alexander"]
[Site "St. Petersburg"]
[Round "15.20"]
[Annotator "ChessBase"]
[Result "1-0"]
[Date "2018.12.28"]
[WhiteElo "2638"]
[BlackElo "2649"]
[PlyCount "105"]
[TimeControl "900+10"]

1. d4 {[%emt 0:1:29]} d5 {[%emt 0:0:0]} 2. Nc3 {[%emt 0:0:5]} Nf6 {[%emt 0:0:30]
} 3. Bf4 {[%emt 0:0:2]} a6 {[%emt 0:1:11]} 4. e3 {[%emt 0:0:0]} e6 {[%emt 0:0:49]} 5. g4 {[%emt 0:0:2]} b5 {[%emt 0:1:0]} 6. g5 {[%emt 0:0:36]
} Nfd7 {[%emt 0:0:1]} 7. h4 {[%emt 0:0:21]} c5 {[%emt 0:0:19]
} 8. Nce2 {[%emt 0:1:4]} Nc6 {[%emt 0:0:11]} 9. Nf3 {[%emt 0:0:3]} Nb6 {[%emt 0:1:53]
} 10. c3 {[%emt 0:0:56]} cxd4 {[%emt 0:1:3]} 11. Nexd4 {[%emt 0:0:39]
} Bb7 {[%emt 0:0:26]} 12. Nxc6 {[%emt 0:1:53]} Bxc6 {[%emt 0:0:0]} 13. Qd4 {[%emt 0:0:25]} Nc4 {[%emt 0:1:25]} 14. Ne5 {[%emt 0:3:3]} Bb7 {[%emt 0:0:54]} 15. 0-0-0 {[%emt 0:0:41]} Qb6 {[%emt 0:0:55]} 16. Bg2 {[%emt 0:1:17]
} Bc5 {[%emt 0:1:27]} 17. Nxc4 {[%emt 0:0:1]} Bxd4 {[%emt 0:0:0]} 18. Nxb6 Bxb6 {[%emt 0:0:1]} 19. h5 {[%emt 0:0:14]} Rc8 {[%emt 0:0:0]} 20. h6 {[%emt 0:0:7]} g6 {[%emt 0:0:4]} 21. Be5 {[%emt 0:0:2]} 0-0 {[%emt 0:0:25]
} 22. Kd2 {[%emt 0:0:22]} f5 {[%emt 0:0:37]} 23. gxf6 {[%emt 0:0:0]} Bd8 {[%emt 0:0:1]} 24. Bh3 {[%emt 0:0:59]} Kf7 {[%emt 0:0:1]} 25. Rhg1 {[%emt 0:0:1]} Bxf6 {[%emt 0:0:9]} 26. Bxf6 {[%emt 0:0:1]} Kxf6 {[%emt 0:0:1]
} 27. f4 {[%emt 0:0:1]} Rce8 {[%emt 0:0:38]} 28. Rdf1 {[%emt 0:0:34]
} e5 {[%emt 0:0:10]} 29. Kd3 {[%emt 0:1:9]} Bc8 {[%emt 0:0:0]} 30. Bxc8 {[%emt 0:0:1]} Rxc8 {[%emt 0:0:0]} 31. Rg5 {[%emt 0:0:1]} exf4 {[%emt 0:0:21]} 32. exf4 {[%emt 0:0:14]} Ke6 {[%emt 0:0:37]} 33. Re1+ {[%emt 0:0:34]
} Kd6 {[%emt 0:0:1]} 34. Rge5 {[%emt 0:0:0]} Rf6 {[%emt 0:0:0]} 35. Re7 {[%emt 0:0:3]} Rc7 {[%emt 0:0:11]} 36. Rxc7 {[%emt 0:0:12]} Kxc7 {[%emt 0:0:1]} 37. Re7+ {[%emt 0:0:1]} Kd6 {[%emt 0:0:5]} 38. Rxh7 {[%emt 0:0:5]
} Rxf4 {[%emt 0:0:1]} 39. Rg7 {[%emt 0:0:7]} Rf3+ {[%emt 0:0:0]} 40. Kd4 {[%emt 0:0:29]} Rf4+ {[%emt 0:0:5]} 41. Ke3 {[%emt 0:0:1]} Rh4 {[%emt 0:1:38]} 42. Rxg6+ {[%emt 0:0:2]} Ke5 {[%emt 0:0:0]} 43. Rxa6 {[%emt 0:0:17]
} Rh2 {[%emt 0:0:5]} 44. b3 {[%emt 0:2:35]} Rh3+ {[%emt 0:0:0]} 45. Kd2 {[%emt 0:0:1]} Rh2+ {[%emt 0:0:9]} 46. Kc1 {[%emt 0:0:12]} Ke4 {[%emt 0:0:9]} 47. Rg6 {[%emt 0:0:41]} Kd3 {[%emt 0:0:33]} 48. Rg3+ {[%emt 0:0:2]
} Ke4 {[%emt 0:0:0]} 49. h7 {[%emt 0:0:39]} Rxh7 {[%emt 0:0:0]} 50. Kb2 {[%emt 0:0:1]} Ra7 {[%emt 0:0:32]} 51. Rg6 {[%emt 0:0:9]} b4 {[%emt 0:0:15]} 52. Rg4+ {[%emt 0:0:2]} Kd3 {[%emt 0:0:9]} 53. Rd4+ {[%emt 0:0:2]
} 1-0

[Event "FIDE World Rapid-ch Open 2018"]
[White "Goganov, Aleksey"]
[Black "Sargissian, Gabriel"]
[Site "St. Petersburg"]
[Round "15.21"]
[Annotator "ChessBase"]
[Result "1/2-1/2"]
[Date "2018.12.28"]
[WhiteElo "2612"]
[BlackElo "2689"]
[PlyCount "48"]
[TimeControl "900+10"]

1. d4 {[%emt 0:0:0]} d5 {[%emt 0:0:0]} 2. c4 {[%emt 0:0:0]} e6 {[%emt 0:0:0]} 3. Nf3 {[%emt 0:0:0]} Nf6 {[%emt 0:0:0]} 4. g3 {[%emt 0:0:0]} Bb4+ {[%emt 0:0:0]} 5. Bd2 {[%emt 0:0:0]} Be7 {[%emt 0:0:0]} 6. Bg2 {[%emt 0:0:0]
} 0-0 {[%emt 0:0:0]} 7. 0-0 {[%emt 0:0:1]} Nbd7 {[%emt 0:0:0]} 8. Qc2 {[%emt 0:0:14]} c6 {[%emt 0:0:3]} 9. Rc1 {[%emt 0:0:34]} b6 {[%emt 0:0:12]
} 10. cxd5 {[%emt 0:0:5]} cxd5 {[%emt 0:0:1]} 11. a3 {[%emt 0:0:2]
} Bb7 {[%emt 0:0:29]} 12. Bb4 {[%emt 0:0:4]} Rc8 {[%emt 0:0:0]} 13. Nc3 {[%emt 0:0:1]} Bxb4 {[%emt 0:1:9]} 14. axb4 {[%emt 0:0:2]} a6 {[%emt 0:0:1]} 15. e3 {[%emt 0:1:12]} Qe7 {[%emt 0:0:14]} 16. Qb3 {[%emt 0:0:7]
} h6 {[%emt 0:1:58]} 17. Ne1 {[%emt 0:0:28]} Ne4 {[%emt 0:0:0]} 18. Nd3 {[%emt 0:0:54]} Nd6 {[%emt 0:0:4]} 19. b5 {[%emt 0:1:32]} a5 {[%emt 0:0:20]
} 20. Qa3 {[%emt 0:1:9]} Rfe8 {[%emt 0:0:21]} 21. b4 {[%emt 0:0:0]} Nc4 {[%emt 0:0:10]} 22. Qb3 {[%emt 0:0:19]} Rc7 {[%emt 0:1:1]} 23. bxa5 {[%emt 0:0:3]} Nxa5 {[%emt 0:0:6]} 24. Qd1 {[%emt 0:2:16]} Rec8 {[%emt 0:0:23]
} 1/2-1/2

[Event "FIDE World Rapid-ch Open 2018"]
[White "Shirov, Alexei"]
[Black "Mchedlishvili, Mikheil"]
[Site "St. Petersburg"]
[Round "15.22"]
[Annotator "ChessBase"]
[Result "1/2-1/2"]
[Date "2018.12.28"]
[WhiteElo "2643"]
[BlackElo "2610"]
[PlyCount "121"]
[TimeControl "900+10"]

1. e4 {[%emt 0:0:0]} d6 {[%emt 0:0:0]} 2. d4 {[%emt 0:0:0]} Nf6 {[%emt 0:0:0]} 3. Nc3 {[%emt 0:0:0]} g6 {[%emt 0:0:0]} 4. f4 {[%emt 0:0:0]} Bg7 {[%emt 0:0:0]} 5. Nf3 {[%emt 0:0:0]} 0-0 {[%emt 0:0:7]} 6. Bd3 {[%emt 0:0:0]} Nc6 {[%emt 0:0:58]} 7. 0-0 {[%emt 0:3:14]} e5 {[%emt 0:0:12]} 8. fxe5 {[%emt 0:0:58]} dxe5 {[%emt 0:0:4]} 9. d5 {[%emt 0:0:5]} Ne7 {[%emt 0:2:12]
} 10. Nxe5 {[%emt 0:0:57]} c6 {[%emt 0:0:4]} 11. Bg5 {[%emt 0:0:0]} cxd5 {[%emt 0:0:14]} 12. Bxf6 {[%emt 0:0:2]} Qb6+ {[%emt 0:0:45]} 13. Kh1 {[%emt 0:0:2]} Bxf6 {[%emt 0:0:16]} 14. Nxd5 {[%emt 0:0:3]} Nxd5 {[%emt 0:0:21]
} 15. Nc4 {[%emt 0:0:1]} Qc5 {[%emt 0:1:6]} 16. exd5 {[%emt 0:0:7]
} Bg7 {[%emt 0:0:12]} 17. Qf3 {[%emt 0:1:29]} b6 {[%emt 0:0:0]} 18. c3 {[%emt 0:1:42]} Bb7 {[%emt 0:0:28]} 19. Ne3 {[%emt 0:0:3]} Rae8 {[%emt 0:0:36]} 20. Rae1 {[%emt 0:0:4]} f5 {[%emt 0:2:35]} 21. Bc2 {[%emt 0:3:52]
} Bh6 {[%emt 0:2:14]} 22. Nd1 {[%emt 0:1:17]} Bxd5 {[%emt 0:0:0]} 23. Bb3 {[%emt 0:0:2]} Bxb3 {[%emt 0:0:13]} 24. axb3 {[%emt 0:0:1]} Qd6 {[%emt 0:0:24]} 25. Re2 {[%emt 0:0:40]} Rxe2 {[%emt 0:0:38]} 26. Qxe2 {[%emt 0:0:1]
} Rd8 {[%emt 0:0:8]} 27. Nf2 {[%emt 0:0:7]} Qd2 {[%emt 0:0:0]} 28. Re1 {[%emt 0:1:16]} Qxe2 {[%emt 0:0:42]} 29. Rxe2 {[%emt 0:0:1]} Kf7 {[%emt 0:0:0]} 30. g3 {[%emt 0:0:7]} a5 {[%emt 0:0:33]} 31. Kg2 {[%emt 0:0:6]
} Rd5 {[%emt 0:0:6]} 32. c4 {[%emt 0:0:57]} Rd7 {[%emt 0:0:0]} 33. g4 {[%emt 0:0:14]} fxg4 {[%emt 0:0:19]} 34. Nxg4 {[%emt 0:0:1]} Bg7 {[%emt 0:0:1]} 35. Nf2 {[%emt 0:0:29]} Bf8 {[%emt 0:0:29]} 36. Ng4 {[%emt 0:0:17]
} Bg7 {[%emt 0:0:26]} 37. Nf2 {[%emt 0:0:8]} Bf8 {[%emt 0:0:0]} 38. Ng4 {[%emt 0:0:2]} Kg7 {[%emt 0:0:13]} 39. Ne5 {[%emt 0:0:9]} Rd1 {[%emt 0:0:5]} 40. Kf3 {[%emt 0:0:23]} Bc5 {[%emt 0:0:2]} 41. Ke4 {[%emt 0:0:3]
} Rd4+ {[%emt 0:0:4]} 42. Kf3 {[%emt 0:0:2]} Kf6 {[%emt 0:0:0]} 43. Ng4+ {[%emt 0:0:15]} Kg7 {[%emt 0:0:2]} 44. Ne5 {[%emt 0:0:27]} g5 {[%emt 0:0:15]} 45. Re4 {[%emt 0:0:12]} h5 {[%emt 0:0:8]} 46. Rxd4 {[%emt 0:0:10]
} Bxd4 {[%emt 0:0:0]} 47. Nd3 {[%emt 0:0:3]} Kf6 {[%emt 0:0:0]} 48. Ke4 {[%emt 0:0:2]} Bc5 {[%emt 0:0:11]} 49. h3 {[%emt 0:0:9]} Ke6 {[%emt 0:0:13]} 50. Ne1 {[%emt 0:0:14]} Be7 {[%emt 0:0:5]} 51. Nd3 {[%emt 0:0:7]
} Bd6 {[%emt 0:0:8]} 52. Nf2 {[%emt 0:0:4]} Bg3 {[%emt 0:0:0]} 53. Nd3 {[%emt 0:0:3]} g4 {[%emt 0:0:11]} 54. hxg4 hxg4 55. b4 {[%emt 0:0:24]
} a4 {[%emt 0:0:23]} 56. Nf4+ {[%emt 0:0:19]} Bxf4 {[%emt 0:0:0]} 57. Kxf4 {[%emt 0:0:1]} g3 {[%emt 0:0:1]} 58. Kxg3 {[%emt 0:0:2]} Ke5 {[%emt 0:0:1]} 59. Kf3 {[%emt 0:0:6]} Kd4 {[%emt 0:0:1]} 60. c5 {[%emt 0:0:2]
} bxc5 {[%emt 0:0:2]} 61. bxc5 {[%emt 0:0:1]} 1/2-1/2

[Event "FIDE World Rapid-ch Open 2018"]
[White "Kovalenko, Igor"]
[Black "Sakaev, Konstantin"]
[Site "St. Petersburg"]
[Round "15.23"]
[Annotator "ChessBase"]
[Result "1-0"]
[Date "2018.12.28"]
[WhiteElo "2657"]
[BlackElo "2584"]
[PlyCount "65"]
[TimeControl "900+10"]

1. c4 {[%emt 0:0:0]} e6 {[%emt 0:0:0]} 2. Nc3 {[%emt 0:0:0]} d5 {[%emt 0:0:0]} 3. d4 {[%emt 0:0:0]} Nf6 {[%emt 0:0:5]} 4. cxd5 {[%emt 0:0:1]} Nxd5 {[%emt 0:0:4]} 5. e4 {[%emt 0:0:41]} Nxc3 {[%emt 0:0:2]} 6. bxc3 {[%emt 0:0:0]
} c5 {[%emt 0:0:1]} 7. Rb1 {[%emt 0:0:1]} cxd4 {[%emt 0:0:0]} 8. cxd4 {[%emt 0:0:4]} Nc6 {[%emt 0:0:1]} 9. Bb5 {[%emt 0:0:21]} a6 {[%emt 0:0:26]
} 10. Bxc6+ {[%emt 0:0:13]} bxc6 {[%emt 0:0:1]} 11. Ne2 {[%emt 0:0:17]
} c5 {[%emt 0:0:30]} 12. 0-0 {[%emt 0:0:24]} Be7 {[%emt 0:0:0]} 13. Be3 {[%emt 0:0:24]} cxd4 {[%emt 0:0:14]} 14. Nxd4 {[%emt 0:0:1]} Bd7 {[%emt 0:1:16]} 15. Rb7 {[%emt 0:0:37]} Rb8 {[%emt 0:0:4]} 16. Rxb8 {[%emt 0:3:40]
} Qxb8 {[%emt 0:0:2]} 17. Qd3 {[%emt 0:0:1]} Qa8 {[%emt 0:0:0]} 18. e5 {[%emt 0:0:16]} Qd5 {[%emt 0:1:13]} 19. Qxa6 {[%emt 0:0:2]} 0-0 {[%emt 0:0:22]} 20. Rb1 {[%emt 0:3:9]} Bc5 {[%emt 0:1:3]} 21. Nc2 {[%emt 0:3:35]
} Bc6 {[%emt 0:2:24]} 22. Qf1 {[%emt 0:0:1]} Bxe3 {[%emt 0:0:0]} 23. Nxe3 {[%emt 0:0:2]} Qxa2 {[%emt 0:0:22]} 24. Qc1 {[%emt 0:1:1]} Be4 {[%emt 0:0:42]} 25. Rb4 {[%emt 0:0:17]} Bg6 {[%emt 0:0:21]} 26. h3 {[%emt 0:0:46]
} Qa5 {[%emt 0:0:11]} 27. Qb2 {[%emt 0:0:3]} h6 {[%emt 0:0:0]} 28. Kh2 {[%emt 0:0:20]} Kh7 {[%emt 0:0:16]} 29. Qd4 {[%emt 0:0:56]} Rd8 {[%emt 0:0:17]} 30. Qf4 {[%emt 0:0:6]} Rd2 {[%emt 0:1:42]} 31. Ng4 {[%emt 0:0:9]
} Rd5 {[%emt 0:1:16]} 32. Rb8 {[%emt 0:0:15]} Qc7 {[%emt 0:0:0]} 33. Qxh6+ {[%emt 0:0:2]} 1-0

[Event "FIDE World Rapid-ch Open 2018"]
[White "Tomashevsky, Evgeny"]
[Black "Postny, Evgeny"]
[Site "St. Petersburg"]
[Round "15.24"]
[Annotator "RC"]
[Result "1-0"]
[Date "2018.12.28"]
[WhiteElo "2705"]
[BlackElo "2615"]
[PlyCount "89"]
[TimeControl "900+10"]

1. c4 {[%emt 0:0:0]} c6 {[%emt 0:0:0]} 2. Nf3 {[%emt 0:0:0]} d5 {[%emt 0:0:0]} 3. e3 {[%emt 0:0:10]} Nf6 {[%emt 0:0:0]} 4. Nc3 {[%emt 0:0:2]} a6 {[%emt 0:0:2]} 5. Be2 {[%emt 0:0:11]} g6 {[%emt 0:0:40]} 6. 0-0 {[%emt 0:0:0]} Bg7 {[%emt 0:0:1]} 7. d4 {[%emt 0:0:2]} 0-0 {[%emt 0:0:11]} 8. Bd2 {[%emt 0:0:3]} dxc4 {[%emt 0:1:7]} 9. Bxc4 {[%emt 0:0:34]} b5 {[%emt 0:0:0]} 10. Be2 {[%emt 0:0:30]} Nbd7 {[%emt 0:0:14]} 11. b4 {[%emt 0:2:35]} Re8 {[%emt 0:0:55]} 12. Qb3 {[%emt 0:5:26]} e5 {[%emt 0:0:30]} 13. Ng5 {[%emt 0:0:0]} Qe7 {[%emt 0:0:10]} 14. Bf3 {[%emt 0:0:2]} Bb7 {[%emt 0:0:8]} 15. Rad1 {[%emt 0:0:52]} h6 {[%emt 0:1:13]} 16. Nge4 {[%emt 0:0:1]} Nd5 {[%emt 0:0:1]
} 17. Nc5 {[%emt 0:0:46]} Nxc3 {[%emt 0:3:3]} 18. Bxc3 {[%emt 0:0:13]
} Nxc5 {[%emt 0:0:3]} 19. dxc5 {[%emt 0:0:20]} Rad8 {[%emt 0:0:0]} 20. Be4 {[%emt 0:1:58]} Kh7 {[%emt 0:0:7]} 21. a3 {[%emt 0:0:6]} f5 {[%emt 0:0:47]} 22. Bb1 {[%emt 0:0:2]} Bc8 {[%emt 0:0:12]} 23. Ba2 {[%emt 0:0:6]
} h5 {[%emt 0:1:36]} 24. h3 {[%emt 0:0:35]} h4 {[%emt 0:1:33]} 25. Kh1 {[%emt 0:0:37]} Rf8 {[%emt 0:0:24]} 26. f4 {[%emt 0:0:11]} exf4 {[%emt 0:1:6]
} 27. Bxg7 {[%emt 0:0:13]} Kxg7 {[%emt 0:0:48]} 28. exf4 {[%emt 0:0:17]
} Rxd1 {[%emt 0:0:9]} 29. Rxd1 {[%emt 0:0:6]} Kh6 {[%emt 0:0:0]} 30. Qf3 {[%emt 0:1:13]} Qf6 {[%emt 0:0:22]} 31. Kh2 {[%emt 0:0:7]} Qb2 {[%emt 0:0:12]} 32. Bb3 {[%emt 0:2:15]} Qxa3 {[%emt 0:0:57]} 33. Qe3 {[%emt 0:0:1]
} Qxb4 {[%emt 0:1:9]} 34. Qe7 {[%emt 0:0:0]} Qxf4+ {[%emt 0:0:0]} 35. Kh1 {[%emt 0:0:1]} Rh8 {[%emt 0:0:2]} 36. Qf6 {[%emt 0:0:6]} Re8 {[%emt 0:0:19]} 37. Bf7 {[%emt 0:0:5]} Re6 {[%emt 0:0:58]} 38. Bxe6 {[%emt 0:0:9]
} Bxe6 {[%emt 0:0:1]} 39. Qxe6 {[%emt 0:0:9]} b4 {[%emt 0:0:0]} 40. Qxc6 {[%emt 0:0:14]} b3 {[%emt 0:0:3]} 41. Qb6 {[%emt 0:0:16]} Qc4 {[%emt 0:0:5]} 42. c6 {[%emt 0:0:44]} Qc2 {[%emt 0:0:1]} 43. Rg1 {[%emt 0:0:0]} a5 {[%emt 0:0:5]} 44. c7 {[%emt 0:0:7]} a4 {[%emt 0:0:1]} 45. Qb8 {[%emt 0:0:11]} 1-0

[Event "FIDE World Rapid-ch Open 2018"]
[White "Guseinov, Gadir"]
[Black "Grigoriants, Sergey"]
[Site "St. Petersburg"]
[Round "15.25"]
[Annotator "ChessBase"]
[Result "1-0"]
[Date "2018.12.28"]
[WhiteElo "2664"]
[BlackElo "2540"]
[PlyCount "54"]
[TimeControl "900+10"]

1. e4 {[%emt 0:0:0]} c5 {[%emt 0:0:0]} 2. Nc3 {[%emt 0:0:0]} e6 {[%emt 0:0:0]} 3. Nf3 {[%emt 0:0:0]} a6 {[%emt 0:0:58]} 4. d4 {[%emt 0:0:0]} cxd4 {[%emt 0:0:1]} 5. Nxd4 {[%emt 0:0:0]} d6 {[%emt 0:0:35]} 6. g3 {[%emt 0:0:0]} Nf6 {[%emt 0:0:7]} 7. Bg2 {[%emt 0:0:2]} Qc7 {[%emt 0:0:31]} 8. 0-0 {[%emt 0:0:5]} Be7 {[%emt 0:0:0]} 9. f4 {[%emt 0:0:4]} Nc6 {[%emt 0:0:0]} 10. Nxc6 {[%emt 0:1:43]} bxc6 {[%emt 0:0:3]} 11. e5 {[%emt 0:0:1]} dxe5 {[%emt 0:1:26]} 12. fxe5 {[%emt 0:0:2]} Nd7 {[%emt 0:0:0]} 13. Bf4 {[%emt 0:0:37]
} 0-0 {[%emt 0:0:27]} 14. Qh5 {[%emt 0:0:23]} Rb8 {[%emt 0:0:0]} 15. b3 {[%emt 0:0:48]} g6 {[%emt 0:0:29]} 16. Qe2 {[%emt 0:0:16]} g5 {[%emt 0:1:32]
} 17. Bd2 {[%emt 0:2:19]} Qxe5 {[%emt 0:0:14]} 18. Ne4 {[%emt 0:0:1]
} f5 {[%emt 0:1:6]} 19. Bc3 {[%emt 0:2:11]} Qb5 {[%emt 0:0:0]} 20. Qh5 {[%emt 0:0:4]} fxe4 {[%emt 0:1:19]} 21. Rxf8+ Nxf8 {[%emt 0:0:0]} 22. Rf1 {[%emt 0:2:40]} Bc5+ {[%emt 0:2:52]} 23. Kh1 {[%emt 0:0:3]} Ng6 {[%emt 0:0:1]} 24. a4 {[%emt 0:1:28]} Qb7 {[%emt 0:1:25]} 25. Bxe4 {[%emt 0:0:4]
} e5 {[%emt 0:0:3]} 26. Bxg6 {[%emt 0:0:20]} hxg6 {[%emt 0:0:0]} 27. Qxg6+ {[%emt 0:0:7]} Qg7 {[%emt 0:0:1]} 1-0

[Event "FIDE World Rapid-ch Open 2018"]
[White "Piorun, Kacper"]
[Black "Motylev, Alexander"]
[Site "St. Petersburg"]
[Round "15.26"]
[Annotator "ChessBase"]
[Result "1-0"]
[Date "2018.12.28"]
[WhiteElo "2634"]
[BlackElo "2644"]
[PlyCount "68"]
[TimeControl "900+10"]

1. c4 {[%emt 0:0:0]} Nf6 {[%emt 0:0:0]} 2. g3 {[%emt 0:0:0]} c6 {[%emt 0:0:0]} 3. Bg2 {[%emt 0:0:0]} d5 {[%emt 0:0:0]} 4. Nf3 {[%emt 0:0:0]} g6 {[%emt 0:0:15]} 5. b3 {[%emt 0:0:36]} Bg7 {[%emt 0:0:3]} 6. 0-0 {[%emt 0:0:0]} e5 {[%emt 0:0:47]} 7. Bb2 {[%emt 0:2:21]} e4 {[%emt 0:0:13]} 8. Ne1 {[%emt 0:0:7]} 0-0 {[%emt 0:0:33]} 9. d3 {[%emt 0:0:54]} dxc4 {[%emt 0:0:0]} 10. bxc4 {[%emt 0:0:29]} exd3 {[%emt 0:0:7]} 11. Nxd3 {[%emt 0:0:8]} Re8 {[%emt 0:0:15]} 12. Nd2 {[%emt 0:0:25]} Bf5 {[%emt 0:0:18]} 13. Nf3 {[%emt 0:0:46]
} Na6 {[%emt 0:0:22]} 14. Re1 {[%emt 0:1:32]} Qc7 {[%emt 0:0:0]} 15. Qb3 {[%emt 0:0:33]} Rad8 {[%emt 0:0:10]} 16. Rad1 {[%emt 0:1:16]} Qb6 {[%emt 0:3:13]} 17. Qxb6 {[%emt 0:3:2]} axb6 {[%emt 0:0:3]} 18. Bd4 {[%emt 0:1:16]
} Nd7 {[%emt 0:1:50]} 19. e3 {[%emt 0:0:22]} Ndc5 {[%emt 0:0:0]} 20. Nf4 {[%emt 0:1:17]} Nb4 {[%emt 0:2:21]} 21. Bxg7 {[%emt 0:0:7]} Kxg7 {[%emt 0:0:2]} 22. Nd4 {[%emt 0:0:1]} Nxa2 {[%emt 0:0:27]} 23. Nxf5+ {[%emt 0:0:12]} gxf5 {[%emt 0:0:1]} 24. Rb1 {[%emt 0:0:20]} Na4 {[%emt 0:0:0]} 25. Ne2 {[%emt 0:0:18]} Rd2 {[%emt 0:0:30]} 26. Nd4 {[%emt 0:0:30]} N4c3 {[%emt 0:1:2]} 27. Ra1 {[%emt 0:0:22]} Kf6 {[%emt 0:0:12]} 28. Bh3 {[%emt 0:0:25]
} Nb4 {[%emt 0:0:50]} 29. Rec1 {[%emt 0:1:12]} Ne4 {[%emt 0:0:0]} 30. Rf1 {[%emt 0:0:26]} c5 {[%emt 0:0:30]} 31. Nf3 {[%emt 0:0:45]} Rc2 {[%emt 0:0:3]} 32. Nh4 {[%emt 0:0:11]} Rxc4 {[%emt 0:0:17]} 33. Bxf5 {[%emt 0:0:10]
} Nd2 {[%emt 0:0:35]} 34. Rfd1 {[%emt 0:0:1]} Nb3 {[%emt 0:0:0]} 1-0

[Event "FIDE World Rapid-ch Open 2018"]
[White "Amonatov, Farrukh"]
[Black "Inarkiev, Ernesto"]
[Site "St. Petersburg"]
[Round "15.27"]
[Annotator "ChessBase"]
[Result "0-1"]
[Date "2018.12.28"]
[WhiteElo "2614"]
[BlackElo "2693"]
[PlyCount "96"]
[TimeControl "900+10"]

1. e4 {[%emt 0:0:0]} c5 {[%emt 0:0:0]} 2. Nf3 {[%emt 0:0:0]} e6 {[%emt 0:0:0]} 3. d4 {[%emt 0:0:0]} cxd4 {[%emt 0:0:0]} 4. Nxd4 {[%emt 0:0:0]} Nc6 {[%emt 0:0:0]} 5. Nc3 {[%emt 0:0:0]} Qc7 {[%emt 0:0:0]} 6. Be3 {[%emt 0:0:0]
} a6 {[%emt 0:0:0]} 7. Qd2 {[%emt 0:0:0]} Nf6 {[%emt 0:0:0]
} 8. 0-0-0 {[%emt 0:0:2]} Be7 {[%emt 0:0:0]} 9. f3 {[%emt 0:0:4]} b5 {[%emt 0:0:3]
} 10. g4 {[%emt 0:0:44]} Nxd4 {[%emt 0:0:1]} 11. Bxd4 {[%emt 0:0:11]
} Bb7 {[%emt 0:0:5]} 12. Kb1 {[%emt 0:0:7]} 0-0 {[%emt 0:0:0]} 13. Bd3 {[%emt 0:0:15]} b4 {[%emt 0:1:54]} 14. Ne2 {[%emt 0:0:23]} e5 {[%emt 0:0:22]
} 15. Be3 {[%emt 0:0:4]} d5 {[%emt 0:0:1]} 16. g5 {[%emt 0:0:0]} Nxe4 {[%emt 0:0:21]} 17. fxe4 {[%emt 0:0:12]} dxe4 {[%emt 0:0:1]} 18. Bc4 {[%emt 0:1:1]} Qxc4 {[%emt 0:0:21]} 19. Qd7 {[%emt 0:0:1]} Rac8 {[%emt 0:2:36]
} 20. Qxb7 {[%emt 0:4:29]} Qxe2 {[%emt 0:2:56]} 21. Qxe7 {[%emt 0:0:30]
} Qxe3 {[%emt 0:0:8]} 22. Qxb4 {[%emt 0:0:7]} Rb8 {[%emt 0:0:0]} 23. Qd2 {[%emt 0:0:29]} Qxd2 24. Rxd2 {[%emt 0:0:2]} f5 {[%emt 0:0:0]} 25. gxf6 {[%emt 0:0:3]} gxf6 {[%emt 0:0:1]} 26. c4 {[%emt 0:0:42]} Rbd8 {[%emt 0:1:6]} 27. Re2 {[%emt 0:0:45]} f5 {[%emt 0:0:1]} 28. c5 {[%emt 0:0:0]
} Kf7 {[%emt 0:0:9]} 29. c6 {[%emt 0:0:10]} Rd6 {[%emt 0:0:0]} 30. Rc1 {[%emt 0:0:3]} Rc8 {[%emt 0:0:1]} 31. c7 {[%emt 0:0:2]} Rd7 {[%emt 0:0:5]} 32. Rec2 {[%emt 0:0:1]} e3 {[%emt 0:0:6]} 33. b4 {[%emt 0:0:0]} f4 {[%emt 0:0:6]} 34. a4 {[%emt 0:0:1]} f3 {[%emt 0:1:30]} 35. b5 {[%emt 0:0:53]} axb5 {[%emt 0:0:3]} 36. axb5 {[%emt 0:0:1]} e2 {[%emt 0:0:0]} 37. b6 {[%emt 0:0:1]} Rd6 {[%emt 0:0:1]} 38. b7 {[%emt 0:3:6]} Rb6+ {[%emt 0:0:1]} 39. Rb2 Rxb7 40. Rxb7 {[%emt 0:0:1]} f2 {[%emt 0:0:8]
} 41. Rb8 {[%emt 0:0:1]} Rxc7 {[%emt 0:0:59]} 42. Rxc7+ {[%emt 0:0:2]} Ke6 {[%emt 0:0:0]} 43. Rb6+ {[%emt 0:5:55]} Kd5 {[%emt 0:0:1]} 44. Rd7+ {[%emt 0:0:8]
} Kc5 {[%emt 0:0:17]} 45. Rdd6 {[%emt 0:0:6]} e1=Q+ {[%emt 0:0:0]} 46. Kb2 {[%emt 0:0:5]} Qe2+ {[%emt 0:0:25]} 47. Kb3 {[%emt 0:0:24]} Qf3+ {[%emt 0:0:2]} 48. Ka4 {[%emt 0:0:1]} f1=Q {[%emt 0:0:22]} 0-1